bitfinex-derivatives/quotes_BTCF0:USTF0_20250313
["timestamp","ask_amount","ask_price","bid_price","bid_amount"]
[1741904502243,0.0618108,80923.0,80909.0,0.09396439]
[1741904502541,0.1238142,80918.0,80917.0,0.1236303]
[1741904502740,0.1238142,80918.0,80917.0,0.13449469]
[1741904503144,0.1238142,80918.0,80917.0,0.19899469]
[1741904503552,0.1561142,80918.0,80917.0,0.19899469]
[1741904504854,0.1591142,80918.0,80917.0,0.19899469]
[1741904507254,0.1591142,80918.0,80917.0,0.19927074]
[1741904509754,0.1924142,80918.0,80917.0,0.19927074]
[1741904512658,0.2230142,80918.0,80917.0,0.19927074]
[1741904513054,0.2230142,80918.0,80917.0,0.19924201]
[1741904515857,0.2230142,80918.0,80917.0,0.01111171]
[1741904516555,0.1236364,80913.0,80912.0,0.1236378]
[1741904516757,0.1236364,80913.0,80912.0,0.16772071]
[1741904516960,0.1871364,80913.0,80912.0,0.19802071]
[1741904518561,0.1901364,80913.0,80912.0,0.19802071]
[1741904518756,0.1901364,80913.0,80912.0,0.2160561]
[1741904519662,0.1901364,80913.0,80912.0,0.22967679]
[1741904520265,0.1575364,80913.0,80912.0,0.22967679]
[1741904520464,0.003,80913.0,80912.0,0.22967679]
[1741904522255,0.003,80913.0,80912.0,0.24967679]
[1741904523364,0.003,80913.0,80912.0,0.22967679]
[1741904526058,0.003,80913.0,80912.0,0.46967679]
[1741904526663,0.003,80913.0,80912.0,0.76445543]
[1741904527989,0.0618009,80936.0,80912.0,0.64081763]
[1741904528178,0.0618119,80923.0,80922.0,0.0618096]
[1741904528377,0.0618119,80923.0,80922.0,0.0913253]
[1741904528378,0.1854412,80923.0,80922.0,0.0913253]
[1741904528670,0.1854412,80923.0,80922.0,0.0295157]
[1741904528879,0.3116812,80923.0,80922.0,0.0295157]
[1741904529083,0.3116812,80923.0,80922.0,0.06588521]
[1741904529688,0.3146812,80923.0,80922.0,0.06588521]
[1741904530673,0.3146812,80923.0,80922.0,0.06766987]
[1741904531486,0.32715607,80923.0,80922.0,0.06766987]
[1741904531985,0.32715607,80923.0,80922.0,0.02565913]
[1741904532579,0.32715607,80923.0,80922.0,0.02539143]
[1741904532886,0.32415607,80923.0,80922.0,0.02539143]
[1741904533586,0.32415607,80923.0,80922.0,0.14901413]
[1741904534086,0.32415607,80923.0,80922.0,0.16790116]
[1741904534585,0.32415607,80923.0,80922.0,0.23383365]
[1741904536278,0.32415607,80923.0,80922.0,0.07731095]
[1741904539788,0.32415607,80923.0,80922.0,0.05842448]
[1741904542286,0.19791607,80923.0,80922.0,0.05842448]
[1741904542487,0.32411607,80923.0,80922.0,0.05842448]
[1741904546488,0.32411607,80923.0,80922.0,0.0582393]
[1741904547098,0.32411607,80923.0,80922.0,0.0901393]
[1741904547689,0.32411607,80923.0,80922.0,0.213762]
[1741904548087,0.20048677,80923.0,80922.0,0.213762]
[1741904548494,0.13867487,80923.0,80922.0,0.213762]
[1741904548797,0.26229607,80923.0,80922.0,0.0901393]
[1741904548993,0.32739607,80923.0,80922.0,0.0901393]
[1741904549194,0.32739607,80923.0,80922.0,0.213762]
[1741904549698,0.20377487,80923.0,80922.0,0.213762]
[1741904550395,0.1913,80923.0,80922.0,0.23240637]
[1741904551197,0.0329,80923.0,80922.0,0.23240637]
[1741904551801,0.0001854,80931.0,80922.0,0.23240637]
[1741904551802,0.0001854,80931.0,80922.0,0.27527083]
[1741904552099,0.0001854,80931.0,80930.0,0.1236105]
[1741904552300,0.0322854,80931.0,80930.0,0.15387348]
[1741904552594,0.0322854,80931.0,80930.0,0.16799275]
[1741904552809,0.0322854,80931.0,80930.0,0.26249275]
[1741904552989,0.0001854,80931.0,80930.0,0.26249275]
[1741904553190,0.0001854,80931.0,80930.0,0.28529115]
[1741904556389,0.01232071,80941.0,80930.0,0.16168065]
[1741904556596,0.0327,80941.0,80940.0,0.1235952]
[1741904556795,0.12616,80943.0,80942.0,0.1235922]
[1741904556995,0.2620142,80943.0,80942.0,0.15435376]
[1741904557588,0.123585,80950.0,80949.0,0.1853659]
[1741904557792,0.154685,80950.0,80949.0,0.19719711]
[1741904557999,0.184785,80950.0,80949.0,0.19719711]
[1741904558198,0.184785,80950.0,80949.0,0.2108178]
[1741904558902,0.216985,80950.0,80949.0,0.2430178]
[1741904559497,0.22949751,80950.0,80949.0,0.0576519]
[1741904560498,0.22949751,80950.0,80949.0,0.04403121]
[1741904561298,0.22949751,80950.0,80949.0,0.0322]
[1741904564396,0.1235815,80949.0,80948.0,0.031]
[1741904564896,0.1881815,80949.0,80948.0,0.031]
[1741904565791,0.3143015,80949.0,80948.0,0.031]
[1741904568900,0.1881815,80949.0,80948.0,0.031]
[1741904569099,0.3143015,80949.0,80948.0,0.031]
[1741904576210,0.3143015,80949.0,80948.0,0.04293851]
[1741904576998,0.3143015,80949.0,80948.0,0.031]
[1741904577199,0.3143015,80949.0,80948.0,0.04288018]
[1741904577395,0.3143015,80949.0,80948.0,0.04288357]
[1741904577810,0.3143015,80949.0,80948.0,0.031]
[1741904578504,0.3143015,80949.0,80948.0,0.04288743]
[1741904580406,0.3143015,80949.0,80948.0,0.05688654]
[1741904581303,0.3143015,80949.0,80948.0,0.07604889]
[1741904583409,0.3143015,80949.0,80948.0,0.07601841]
[1741904584807,0.3143015,80949.0,80948.0,0.05692945]
[1741904591016,0.3143015,80949.0,80948.0,0.07577041]
[1741904597318,0.3143015,80949.0,80948.0,0.07583136]
[1741904597816,0.31604804,80949.0,80948.0,0.07583136]
[1741904599316,0.31604804,80949.0,80948.0,0.07583397]
[1741904606519,0.1235983,80938.0,80937.0,0.22026153]
[1741904606817,0.25134484,80938.0,80937.0,0.178152]
[1741904607018,0.1236151,80927.0,80926.0,0.36797655]
[1741904607213,0.2496151,80927.0,80926.0,0.32204201]
[1741904607521,0.2496151,80927.0,80926.0,0.29704201]
[1741904607819,0.25136164,80927.0,80926.0,0.29704201]
[1741904608019,0.1236227,80922.0,80921.0,0.03]
[1741904608623,0.1236273,80919.0,80918.0,0.0001854]
[1741904608826,0.12537384,80919.0,80918.0,0.0001854]
[1741904609422,0.12537384,80919.0,80918.0,0.0311854]
[1741904609733,0.15557384,80919.0,80918.0,0.0311854]
[1741904610518,0.15557384,80919.0,80918.0,0.0634854]
[1741904610919,0.16820958,80919.0,80918.0,0.0634854]
[1741904612529,0.17220958,80919.0,80918.0,0.0634854]
[1741904613127,0.17620958,80919.0,80918.0,0.0634854]
[1741904613518,0.17620958,80919.0,80918.0,0.0001854]
[1741904613722,0.17620958,80919.0,80909.0,0.0315]
[1741904613723,0.123641,80910.0,80909.0,0.0315]
[1741904614027,0.25138754,80910.0,80909.0,0.0315]
[1741904615023,0.25138754,80910.0,80909.0,0.1551426]
[1741904615224,0.12774654,80910.0,80909.0,0.1551426]
[1741904615723,0.12974654,80910.0,80909.0,0.1551426]
[1741904616030,0.13174654,80910.0,80909.0,0.1551426]
[1741904616632,0.00574654,80910.0,80909.0,0.1551426]
[1741904617634,0.12938754,80910.0,80909.0,0.1551426]
[1741904618631,0.12938754,80910.0,80909.0,0.16598969]
[1741904619140,0.12938754,80910.0,80909.0,0.1551426]
[1741904619639,0.12738754,80910.0,80909.0,0.1551426]
[1741904619831,0.12638754,80910.0,80909.0,0.1551426]
[1741904623138,0.12738754,80910.0,80909.0,0.1551426]
[1741904625534,0.12738754,80910.0,80909.0,0.1856426]
[1741904625937,0.12638754,80910.0,80909.0,0.1856426]
[1741904626134,0.12938754,80910.0,80909.0,0.1856426]
[1741904626830,0.12738754,80910.0,80909.0,0.1856426]
[1741904627035,0.12938754,80910.0,80909.0,0.1856426]
[1741904628937,0.16098754,80910.0,80909.0,0.062]
[1741904629936,0.19208754,80910.0,80909.0,0.1856426]
[1741904630142,0.19308754,80910.0,80909.0,0.1856426]
[1741904631034,0.19308754,80910.0,80909.0,0.062]
[1741904632336,0.19408754,80910.0,80909.0,0.062]
[1741904632731,0.19408754,80910.0,80909.0,0.1856426]
[1741904632933,0.12938754,80910.0,80909.0,0.062]
[1741904633139,0.12938754,80910.0,80909.0,0.1856426]
[1741904633333,0.00574654,80910.0,80909.0,0.19678433]
[1741904633939,0.12938754,80910.0,80909.0,0.19678433]
[1741904634240,0.12938754,80910.0,80909.0,0.21508777]
[1741904634835,0.00574654,80910.0,80909.0,0.21508777]
[1741904635042,0.00574654,80910.0,80909.0,0.22905612]
[1741904635245,0.12938754,80910.0,80909.0,0.22905612]
[1741904638837,0.12938754,80910.0,80909.0,0.22937412]
[1741904639446,0.12938754,80910.0,80909.0,0.21510645]
[1741904639645,0.12938754,80910.0,80909.0,0.22897172]
[1741904640136,0.12938754,80910.0,80909.0,0.21083997]
[1741904640842,0.12938754,80910.0,80909.0,0.21069151]
[1741904642837,0.12938754,80910.0,80909.0,0.19682624]
[1741904643343,0.12938754,80910.0,80909.0,0.21491786]
[1741904645037,0.12938754,80910.0,80909.0,0.22881352]
[1741904646042,0.16148754,80910.0,80909.0,0.22881352]
[1741904648242,0.16148754,80910.0,80909.0,0.22901611]
[1741904648751,0.00574654,80910.0,80909.0,0.22901611]
[1741904649343,0.12938754,80910.0,80909.0,0.22901611]
[1741904650144,0.12938754,80910.0,80909.0,0.26091611]
[1741904650444,0.00574654,80910.0,80909.0,0.26091611]
[1741904651143,0.00574654,80910.0,80909.0,0.28091611]
[1741904651448,0.0638,80928.0,80917.0,0.1236303]
[1741904651648,0.0618098,80924.0,80917.0,0.15310815]
[1741904651849,0.0638,80928.0,80917.0,0.26226432]
[1741904652152,0.0618046,80931.0,80928.0,0.1236105]
[1741904652346,0.1235988,80938.0,80937.0,0.1235998]
[1741904652547,0.1235988,80938.0,80937.0,0.15440564]
[1741904652741,0.1541988,80938.0,80937.0,0.15440564]
[1741904652943,0.1868988,80938.0,80937.0,0.25540446]
[1741904653453,0.1888988,80938.0,80937.0,0.25540446]
[1741904654746,0.1888988,80938.0,80937.0,0.26790953]
[1741904655257,0.1868988,80938.0,80937.0,0.26790953]
[1741904657446,0.1868988,80938.0,80937.0,0.25540446]
[1741904658945,0.1888988,80938.0,80937.0,0.25540446]
[1741904660154,0.1888988,80938.0,80937.0,0.25616486]
[1741904665754,0.1888988,80938.0,80937.0,0.22446486]
[1741904665956,0.1888988,80938.0,80937.0,0.22484957]
[1741904666461,0.1888988,80938.0,80937.0,0.06884977]
[1741904666657,0.1888988,80938.0,80937.0,0.19244957]
[1741904666962,0.1888988,80938.0,80937.0,0.06884977]
[1741904667162,0.1888988,80938.0,80937.0,0.19244957]
[1741904667962,0.1888988,80938.0,80937.0,0.25632843]
[1741904671958,0.1888988,80938.0,80937.0,0.25627278]
[1741904674065,0.1888988,80938.0,80937.0,0.2563165]
[1741904674261,0.1888988,80938.0,80937.0,0.28079635]
[1741904674464,0.1888988,80938.0,80937.0,0.28069482]
[1741904674662,0.1888988,80938.0,80937.0,0.2563165]
[1741904674867,0.1888988,80938.0,80937.0,0.28069519]
[1741904676271,0.1582983,80938.0,80937.0,0.28069519]
[1741904678066,0.1582983,80938.0,80937.0,0.28129319]
[1741904678772,0.002,80938.0,80937.0,0.28129319]
[1741904679063,0.00076,80962.0,80937.0,0.28129319]
[1741904679064,0.1235712,80956.0,80937.0,0.21769339]
[1741904679265,0.01227651,80964.0,80949.0,0.01485052]
[1741904679468,0.28991591,80964.0,80963.0,0.1235601]
[1741904679665,0.28991591,80964.0,80963.0,0.18035467]
[1741904679864,0.2776394,80964.0,80963.0,0.18035467]
[1741904680074,0.2776394,80964.0,80963.0,0.24225467]
[1741904680270,0.2776394,80964.0,80963.0,0.27915349]
[1741904681466,0.2776394,80964.0,80963.0,0.25445978]
[1741904683878,0.2776394,80964.0,80963.0,0.253704]
[1741904685362,0.2776394,80964.0,80963.0,0.1301439]
[1741904685767,0.2776394,80964.0,80963.0,0.12996589]
[1741904687774,0.2776394,80964.0,80963.0,0.09306707]
[1741904687979,0.2776394,80964.0,80963.0,0.09997237]
[1741904688373,0.2776394,80964.0,80963.0,0.08079247]
[1741904688573,0.2776394,80964.0,80963.0,0.0578969]
[1741904689676,0.2776394,80964.0,80963.0,0.04590973]
[1741904689981,0.2776394,80964.0,80963.0,0.05761692]
[1741904694172,0.2776394,80964.0,80963.0,0.09001692]
[1741904694382,0.2470394,80964.0,80963.0,0.21357702]
[1741904694588,0.2470394,80964.0,80963.0,0.23235739]
[1741904694879,0.2470394,80964.0,80963.0,0.21357702]
[1741904696081,0.2470394,80964.0,80963.0,0.09001692]
[1741904697689,0.2470394,80964.0,80963.0,0.21357702]
[1741904699384,0.2470394,80964.0,80963.0,0.2325442]
[1741904699591,0.2470394,80964.0,80963.0,0.20186983]
[1741904699791,0.2470394,80964.0,80963.0,0.25561149]
[1741904701090,0.2470394,80964.0,80963.0,0.22479008]
[1741904701293,0.2470394,80964.0,80963.0,0.25563703]
[1741904701592,0.2470394,80964.0,80963.0,0.13207693]
[1741904701991,0.2470394,80964.0,80963.0,0.09967693]
[1741904702387,0.2470394,80964.0,80963.0,0.22323703]
[1741904702993,0.2470394,80964.0,80963.0,0.22328938]
[1741904707600,0.2470394,80964.0,80963.0,0.22376574]
[1741904711091,0.2470394,80964.0,80963.0,0.22369858]
[1741904711496,0.0617763,80968.0,80967.0,0.1853271]
[1741904711693,0.0617763,80968.0,80967.0,0.3124356]
[1741904712195,0.0617763,80968.0,80967.0,0.34966558]
[1741904712395,0.0949763,80968.0,80967.0,0.34966558]
[1741904712897,0.0949763,80968.0,80967.0,0.31956558]
[1741904715001,0.0949763,80968.0,80967.0,0.31959748]
[1741904715694,0.0949763,80968.0,80967.0,0.3344642]
[1741904715995,0.0949763,80968.0,80967.0,0.31959748]
[1741904716195,0.0949763,80968.0,80967.0,0.31982524]
[1741904716399,0.0949763,80968.0,80967.0,0.33468627]
[1741904716602,0.0949763,80968.0,80967.0,0.35899128]
[1741904716797,0.0949763,80968.0,80967.0,0.33607103]
[1741904718003,0.0949763,80968.0,80967.0,0.35877345]
[1741904718304,0.0949763,80968.0,80967.0,0.34391242]
[1741904719493,0.00018527,80972.0,80967.0,0.15858532]
[1741904719697,0.00018527,80972.0,80971.0,0.1235479]
[1741904719899,0.00018527,80972.0,80971.0,0.17942107]
[1741904720104,0.1853057,80980.0,80979.0,0.1235342]
[1741904720308,0.1853057,80980.0,80979.0,0.17940737]
[1741904720503,0.0315,80980.0,80979.0,0.17940737]
[1741904720705,0.1235286,80985.0,80984.0,0.1235281]
[1741904720902,0.1235286,80985.0,80984.0,0.17940127]
[1741904721304,0.1235286,80985.0,80984.0,0.193711]
[1741904721507,0.1860286,80985.0,80984.0,0.16940599]
[1741904722008,0.1860286,80985.0,80984.0,0.04587789]
[1741904722607,0.1860286,80985.0,80984.0,0.2165641]
[1741904722913,0.1860286,80985.0,80984.0,0.21680947]
[1741904723809,0.1860265,80985.0,80984.0,0.21680947]
[1741904724804,0.1860265,80985.0,80984.0,0.21663741]
[1741904726416,0.1860265,80985.0,80984.0,0.19223967]
[1741904726699,0.1860265,80985.0,80984.0,0.19180775]
[1741904726902,0.1860265,80985.0,80984.0,0.16912202]
[1741904727111,0.1860265,80985.0,80984.0,0.04559392]
[1741904728108,0.1860265,80985.0,80984.0,0.16912202]
[1741904728813,0.1860265,80985.0,80984.0,0.04559392]
[1741904729002,0.1860265,80985.0,80984.0,0.01203222]
[1741904729202,0.1235387,80977.0,80966.0,0.123554]
[1741904729399,0.1235387,80977.0,80963.0,0.36812866]
[1741904729400,0.1235387,80977.0,80965.0,0.1235567]
[1741904729808,0.1875387,80977.0,80963.0,0.36812866]
[1741904730114,0.1875387,80977.0,80968.0,0.1235521]
[1741904730304,0.2190387,80977.0,80968.0,0.1235521]
[1741904730706,0.2190387,80977.0,80964.0,0.1235581]
[1741904730899,0.2190387,80977.0,80967.0,0.1235538]
[1741904731507,0.2190387,80977.0,80964.0,0.1235578]
[1741904731706,0.2190387,80977.0,80965.0,0.1235561]
[1741904732214,0.2190387,80977.0,80961.0,0.0617811]
[1741904732215,0.2190387,80977.0,80964.0,0.1235585]
[1741904732406,0.2190387,80977.0,80961.0,0.0617811]
[1741904732608,0.2190387,80977.0,80961.0,0.0617809]
[1741904732803,0.2190387,80977.0,80963.0,0.1235596]
[1741904733206,0.2190387,80977.0,80964.0,0.0323]
[1741904733920,0.2190387,80977.0,80964.0,0.1558586]
[1741904734114,0.2190387,80977.0,80976.0,0.0188432]
[1741904734416,0.2190387,80977.0,80976.0,0.0188436]
[1741904735017,0.2190387,80977.0,80976.0,0.01875536]
[1741904735208,0.2190387,80977.0,80976.0,0.00018527]
[1741904735409,0.2190387,80977.0,80976.0,0.12372557]
[1741904735801,0.2190387,80977.0,80976.0,0.00018527]
[1741904736006,0.2190387,80977.0,80976.0,0.12372557]
[1741904737011,0.2190387,80977.0,80976.0,0.03218527]
[1741904737208,0.2190387,80977.0,80976.0,0.00018527]
[1741904740616,0.2190387,80977.0,80976.0,7e-08]
[1741904740814,0.37382,80977.0,80951.0,0.2935376]
[1741904741022,0.1235708,80956.0,80951.0,0.2935376]
[1741904741316,0.2519308,80956.0,80955.0,0.23162431]
[1741904741513,0.2519308,80956.0,80955.0,0.24539354]
[1741904741714,0.2519308,80956.0,80955.0,0.23382177]
[1741904742220,0.2825308,80956.0,80955.0,0.22005254]
[1741904742419,0.3156308,80956.0,80955.0,0.22005254]
[1741904743110,0.19206,80956.0,80947.0,0.06418527]
[1741904743311,0.123583,80948.0,80947.0,0.06418527]
[1741904743619,0.123583,80948.0,80947.0,0.07556111]
[1741904743919,0.123583,80948.0,80947.0,0.08931034]
[1741904744122,0.123583,80948.0,80947.0,0.0779345]
[1741904744416,0.187383,80948.0,80947.0,0.0779345]
[1741904744820,0.187383,80948.0,80947.0,0.06418527]
[1741904746817,0.0307,80948.0,80947.0,0.06418527]
[1741904747117,0.2516055,80960.0,80959.0,0.1235662]
[1741904747428,0.18552327,80964.0,80963.0,0.1235601]
[1741904747618,0.00934425,80964.0,80963.0,0.13500646]
[1741904747813,0.3135128,80976.0,80975.0,0.1235418]
[1741904748014,0.0617674,80980.0,80975.0,0.01144636]
[1741904748214,0.0617674,80980.0,80972.0,0.0617728]
[1741904748215,0.00926715,80987.0,80976.0,0.10501626]
[1741904748423,0.1235328,80981.0,80980.0,0.0617658]
[1741904748618,0.1235328,80981.0,80980.0,0.0732689]
[1741904748817,0.1235328,80981.0,80980.0,0.08708203]
[1741904749016,0.1235328,80981.0,80980.0,0.11888203]
[1741904749521,0.1235328,80981.0,80980.0,0.11890561]
[1741904750027,0.1235328,80981.0,80980.0,0.05713981]
[1741904750228,0.1235328,80981.0,80980.0,0.04561313]
[1741904750624,0.1565328,80981.0,80980.0,0.04561313]
[1741904751026,0.1565328,80981.0,80980.0,0.0318]
[1741904753017,0.1565328,80981.0,80979.0,0.0331]
[1741904753018,0.033,80981.0,80979.0,0.0331]
[1741904753222,0.1560342,80980.0,80979.0,0.0331]
[1741904753824,0.1235433,80974.0,80973.0,0.033]
[1741904754022,0.2514633,80974.0,80973.0,0.033]
[1741904754821,0.2514633,80974.0,80973.0,0.04451386]
[1741904755224,0.2514633,80974.0,80973.0,0.065]
[1741904755530,0.2514633,80974.0,80973.0,0.07888402]
[1741904755823,0.2829633,80974.0,80973.0,0.07888402]
[1741904756433,0.2829633,80974.0,80973.0,0.09037861]
[1741904756930,0.2514633,80974.0,80973.0,0.21392341]
[1741904757120,0.2514633,80974.0,80973.0,0.09037861]
[1741904759522,0.1235433,80974.0,80973.0,0.09037861]
[1741904759728,0.1853125,80977.0,80976.0,0.1235372]
[1741904760025,0.1853125,80977.0,80976.0,0.13501715]
[1741904760227,0.1853125,80977.0,80976.0,0.23091715]
[1741904760431,0.1853125,80977.0,80976.0,0.23082287]
[1741904760823,0.1853125,80977.0,80976.0,0.24470689]
[1741904761824,0.1853125,80977.0,80976.0,0.2446728]
[1741904762825,0.1853125,80977.0,80976.0,0.1211356]
[1741904763731,0.1853125,80977.0,80976.0,0.12106485]
[1741904765326,0.1853125,80977.0,80976.0,0.24460515]
[1741904767937,0.1853125,80977.0,80976.0,0.2446517]
[1741904768941,0.1235372,80978.0,80977.0,0.1235372]
[1741904769136,0.00012254,80989.0,80988.0,0.123522]
[1741904769336,0.00012254,80989.0,80988.0,0.13484938]
[1741904769536,0.1,81000.0,80999.0,0.1235052]
[1741904769739,0.12688,81017.0,80999.0,0.0294175]
[1741904769936,0.0302,81016.0,81000.0,0.07281427]
[1741904770239,0.0302,81016.0,81013.0,0.1234837]
[1741904770240,0.0626,81016.0,81013.0,0.1234837]
[1741904770429,0.0626,81016.0,81014.0,0.0615]
[1741904770430,0.12684,81015.0,81014.0,0.0615]
[1741904770931,0.0626,81015.0,81014.0,0.0615]
[1741904771542,0.18932,81015.0,81014.0,0.0615]
[1741904773338,0.18932,81015.0,81014.0,0.0308]
[1741904773726,0.18932,81015.0,81006.0,0.00018515]
[1741904773930,0.3128016,81015.0,81007.0,0.0332]
[1741904774228,0.18932,81015.0,81007.0,0.0332]
[1741904774426,0.18932,81015.0,81008.0,0.155591]
[1741904775140,0.18932,81015.0,81012.0,0.1234846]
[1741904775326,0.18932,81015.0,81013.0,0.0653]
[1741904776543,0.18932,81015.0,81014.0,0.1234823]
[1741904777041,0.18932,81015.0,81014.0,0.1859823]
[1741904778533,0.0302,81015.0,81014.0,0.1859823]
[1741904779939,0.0302,81015.0,81014.0,0.0625]
[1741904780142,0.0302,81015.0,81014.0,0.1859823]
[1741904782838,0.00076,81026.0,81025.0,0.1234655]
[1741904783032,0.12588,81026.0,81020.0,0.032]
[1741904783339,0.12588,81026.0,81025.0,0.1234655]
[1741904783639,0.0316,81028.0,81027.0,0.1234625]
[1741904783942,0.12592,81034.0,81033.0,0.1234534]
[1741904784142,0.2493718,81034.0,81033.0,0.1234534]
[1741904784542,0.0617279,81032.0,81029.0,0.0617297]
[1741904784843,0.123464,81026.0,81025.0,0.00018515]
[1741904785245,0.0642,81027.0,81026.0,0.123464]
[1741904785437,0.0316,81027.0,81026.0,0.123464]
[1741904785635,0.1550631,81027.0,81026.0,0.123464]
[1741904788434,0.1550631,81027.0,81025.0,0.00018515]
[1741904788435,0.0316,81027.0,81025.0,0.00018515]
[1741904788643,0.156764,81026.0,81025.0,0.00018515]
[1741904792046,0.283324,81026.0,81025.0,0.00018515]
[1741904793149,0.156764,81026.0,81025.0,0.00018515]
[1741904793351,0.283204,81026.0,81025.0,0.00018515]
[1741904795547,0.283204,81026.0,81025.0,0.0116972]
[1741904795945,0.283204,81026.0,81025.0,0.02559643]
[1741904799248,0.283204,81026.0,81025.0,0.01408438]
[1741904799444,0.283204,81026.0,81025.0,0.04421985]
[1741904799654,0.156764,81026.0,81025.0,0.04421985]
[1741904799951,0.282884,81026.0,81025.0,0.04421985]
[1741904802951,0.282884,81026.0,81025.0,0.05722143]
[1741904803149,0.282884,81026.0,81025.0,0.01408438]
[1741904803449,0.282884,81026.0,81025.0,0.08162036]
[1741904804141,0.249584,81026.0,81025.0,0.10599607]
[1741904804751,0.282784,81026.0,81025.0,0.10599607]
[1741904804949,0.314584,81026.0,81025.0,0.08162036]
[1741904805256,0.314584,81026.0,81025.0,0.06861862]
[1741904805848,0.314584,81026.0,81025.0,0.04568047]
[1741904806053,0.314584,81026.0,81025.0,0.02623656]
[1741904809656,0.314584,81026.0,81025.0,0.04459846]
[1741904809957,0.314584,81026.0,81025.0,0.02623656]
[1741904810762,0.314584,81026.0,81025.0,0.04462274]
[1741904811257,0.314584,81026.0,81025.0,0.02623656]
[1741904811461,0.314584,81026.0,81025.0,0.04463734]
[1741904811863,0.314584,81026.0,81025.0,0.04463722]
[1741904812056,0.282784,81026.0,81025.0,0.04463722]
[1741904812454,0.283064,81026.0,81025.0,0.04463722]
[1741904812860,0.283064,81026.0,81025.0,0.07713722]
[1741904813359,0.283064,81026.0,81025.0,0.07716987]
[1741904813761,0.283064,81026.0,81025.0,0.05873656]
[1741904814764,0.282864,81026.0,81025.0,0.05873656]
[1741904817259,0.282864,81026.0,81025.0,0.07712107]
[1741904819248,0.282864,81026.0,81025.0,0.076428]
[1741904819860,0.314064,81026.0,81025.0,0.076428]
[1741904820056,0.314064,81026.0,81025.0,0.07642802]
[1741904820565,0.347264,81026.0,81025.0,0.05806255]
[1741904820967,0.347264,81026.0,81025.0,0.05802102]
[1741904821459,0.347264,81026.0,81025.0,0.07632365]
[1741904822861,0.249664,81026.0,81025.0,0.07632365]
[1741904823064,0.249664,81026.0,81025.0,0.23068915]
[1741904824866,0.249664,81026.0,81025.0,0.26258915]
[1741904825064,0.123464,81026.0,81025.0,0.26258915]
[1741904825363,0.249664,81026.0,81025.0,0.28533026]
[1741904825562,0.249624,81026.0,81025.0,0.28533026]
[1741904826266,0.249624,81026.0,81025.0,0.26258915]
[1741904826859,0.249624,81026.0,81025.0,0.13912365]
[1741904827061,0.279724,81026.0,81025.0,0.08992102]
[1741904827260,0.309724,81026.0,81025.0,0.08992102]
[1741904827459,0.279724,81026.0,81025.0,0.08992102]
[1741904828068,0.310324,81026.0,81025.0,0.08992102]
[1741904830057,0.279724,81026.0,81025.0,0.08992102]
[1741904831263,0.279724,81026.0,81025.0,0.21338652]
[1741904831669,0.279724,81026.0,81025.0,0.08992102]
[1741904831868,0.311124,81026.0,81025.0,0.08992102]
[1741904832473,0.311124,81026.0,81025.0,0.08957947]
[1741904835875,0.32367633,81026.0,81025.0,0.08957947]
[1741904837367,0.29227633,81026.0,81025.0,0.08957947]
[1741904838071,0.32237633,81026.0,81025.0,0.08957947]
[1741904838380,0.32237633,81026.0,81025.0,0.08950398]
[1741904839177,0.32237633,81026.0,81025.0,0.10759501]
[1741904839377,0.29227633,81026.0,81025.0,0.23106051]
[1741904840067,0.29227633,81026.0,81025.0,0.10759501]
[1741904840270,0.29227633,81026.0,81025.0,0.10785939]
[1741904840978,0.29227633,81026.0,81025.0,0.13069326]
[1741904841276,0.29227633,81026.0,81025.0,0.09819326]
[1741904842269,0.29227633,81026.0,81025.0,0.07983785]
[1741904842465,0.29227633,81026.0,81025.0,0.08012598]
[1741904842871,0.29227633,81026.0,81025.0,0.05729211]
[1741904843173,0.29727633,81026.0,81025.0,0.05729211]
[1741904843864,0.30227633,81026.0,81025.0,0.07531478]
[1741904844279,0.30227633,81026.0,81025.0,0.05729211]
[1741904844480,0.30227633,81026.0,81025.0,0.07532982]
[1741904845381,0.30227633,81026.0,81025.0,0.05729211]
[1741904846279,0.30227633,81026.0,81025.0,0.05720546]
[1741904847780,0.30127633,81026.0,81025.0,0.05720546]
[1741904849380,0.30227633,81026.0,81025.0,0.05720546]
[1741904850179,0.30227633,81026.0,81025.0,0.05714341]
[1741904851174,0.17611633,81026.0,81025.0,0.05714341]
[1741904851375,0.11731612,81050.0,81025.0,0.05714341]
[1741904851575,0.185183,81034.0,81033.0,0.0617265]
[1741904851782,0.311183,81034.0,81033.0,0.07288553]
[1741904852084,0.311183,81034.0,81033.0,0.02505826]
[1741904852280,0.311183,81034.0,81033.0,0.05595826]
[1741904852583,0.311183,81034.0,81033.0,0.17941166]
[1741904852882,0.341683,81034.0,81033.0,0.05595826]
[1741904853183,0.341923,81034.0,81033.0,0.05595826]
[1741904854284,0.341923,81034.0,81033.0,0.05573946]
[1741904855185,0.341923,81034.0,81033.0,0.17919286]
[1741904855575,0.341923,81034.0,81033.0,0.05573946]
[1741904856191,0.341923,81034.0,81033.0,0.05575903]
[1741904856372,0.341923,81034.0,81033.0,0.04479923]
[1741904857271,0.341923,81034.0,81033.0,0.0309]
[1741904860590,0.215683,81034.0,81033.0,0.0309]
[1741904860790,0.341523,81034.0,81033.0,0.0309]
[1741904862083,0.1234625,81027.0,81026.0,0.0326]
[1741904862882,0.1850625,81027.0,81026.0,0.0326]
[1741904863288,0.1850625,81027.0,81026.0,0.0632]
[1741904872299,0.1542625,81027.0,81026.0,0.0632]
[1741904872494,0.1542625,81027.0,81026.0,0.0932]
[1741904875596,0.1542625,81027.0,81026.0,0.0632]
[1741904875792,0.1865625,81027.0,81026.0,0.0632]
[1741904875996,0.3125225,81027.0,81026.0,0.0632]
[1741904887202,0.1542625,81027.0,81026.0,0.0632]
[1741904887401,0.2493025,81027.0,81026.0,0.0632]
[1741904887609,0.2493025,81027.0,81026.0,0.0933]
[1741904891712,0.1234793,81016.0,81015.0,0.22005254]
[1741904891910,0.2493193,81016.0,81015.0,0.22005254]
[1741904892804,0.1234838,81013.0,81012.0,0.03]
[1741904893107,0.13578722,81013.0,81012.0,0.03]
[1741904894109,0.1234854,81012.0,81007.0,0.00018515]
[1741904894317,0.2165854,81012.0,81008.0,0.0305]
[1741904895014,0.2165854,81012.0,81009.0,0.0319]
[1741904895513,0.1234884,81010.0,81009.0,0.0319]
[1741904901714,0.1548434,81012.0,81007.0,0.00018515]
[1741904901915,0.1234915,81008.0,81007.0,0.00018515]
[1741904902318,0.1551915,81008.0,81007.0,0.00018515]
[1741904902818,0.1551915,81008.0,81007.0,0.00118515]
[1741904904614,0.1551915,81008.0,81007.0,0.00018515]
[1741904904812,0.1551915,81008.0,81007.0,0.00118515]
[1741904908720,0.16440608,81008.0,81007.0,0.00118515]
[1741904913521,0.1234991,81003.0,81002.0,0.032]
[1741904913829,0.2493791,81003.0,81002.0,0.032]
[1741904914528,0.3453791,81003.0,81002.0,0.032]
[1741904914727,0.3453791,81003.0,81002.0,0.034]